bitfinex-derivatives/quotes_SOLF0:USTF0_20240910
["timestamp","ask_amount","ask_price","bid_price","bid_amount"]
[1726002089204,1.2955,135.58,135.53,3.6888]
[1726002090604,17.71,135.6,135.49,20.4462]
[1726002091198,17.71,135.58,135.49,2.7362]
[1726002091605,17.71,135.58,135.51,3.6894]
[1726002091906,17.71,135.58,135.49,2.7362]
[1726002092708,17.71,135.58,135.51,3.6895]
[1726002093206,17.71,135.58,135.51,3.6893]
[1726002093905,17.71,135.58,135.52,3.689]
[1726002095797,17.71,135.58,135.49,2.7362]
[1726002096604,17.71,135.58,135.51,3.6893]
[1726002097109,17.71,135.58,135.49,6.4262]
[1726002097405,17.71,135.58,135.45,17.71]
[1726002097708,0.3261,135.57,135.48,3.6901]
[1726002097908,0.3261,135.57,135.45,17.71]
[1726002098108,18.0361,135.57,135.46,1.35601063]
[1726002098313,18.0361,135.57,135.48,3.6903]
[1726002098514,18.0361,135.57,135.47,1.4123]
[1726002098812,18.0361,135.57,135.49,3.6899]
[1726002101703,1.3415,135.56,135.49,3.6899]
[1726002103311,1.3415,135.56,135.48,5.0608]
[1726002103506,1.3415,135.56,135.48,1.3706]
[1726002103703,1.3415,135.56,135.49,17.71]
[1726002104108,1.3415,135.56,135.51,11.34]
[1726002104808,1.3415,135.56,135.51,15.0293]
[1726002105004,1.3415,135.56,135.51,11.34]
[1726002105906,1.3415,135.56,135.52,3.6891]
[1726002106304,11.34,135.58,135.51,11.34]
[1726002107506,11.34,135.58,135.53,3.689]
[1726002107712,11.34,135.58,135.51,11.34]
[1726002107908,11.34,135.58,135.48,6.31797673]
[1726002108112,11.34,135.58,135.51,11.34]
[1726002108412,11.34,135.6,135.53,11.34]
[1726002108613,11.34,135.6,135.55,3.6883]
[1726002109012,11.34,135.59,135.54,1.3844]
[1726002109213,11.34,135.58,135.48,4.94737673]
[1726002109417,11.34,135.58,135.5,11.34]
[1726002109619,11.34,135.58,135.52,3.6891]
[1726002109818,1.406,135.61,135.54,11.34]
[1726002110011,12.746,135.61,135.55,1.4094]
[1726002111424,12.746,135.61,135.55,5.0978]
[1726002112808,12.746,135.61,135.55,1.4094]
[1726002113007,3.63710673,135.64,135.55,1.4094]
[1726002113321,11.34,135.61,135.55,1.4094]
[1726002114716,7.70518089,135.69,135.55,1.4094]
[1726002114920,1.3796,135.73,135.65,11.34]
[1726002115116,11.34,135.69,135.55,5.17295246]
[1726002115316,11.34,135.69,135.61,11.34]
[1726002115921,1.3764,135.71,135.61,11.34]
[1726002116119,1.3764,135.71,135.6,17.69]
[1726002116320,17.69,135.7,135.63,3.6862]
[1726002116625,17.69,135.67,135.55,5.17295246]
[1726002116816,17.69,135.67,135.56,17.69]
[1726002117016,1.3796,135.66,135.56,17.69]
[1726002118023,1.3796,135.66,135.61,3.6866]
[1726002118423,1.3796,135.66,135.56,17.69]
[1726002120034,1.3796,135.66,135.61,3.6868]
[1726002122122,1.3796,135.66,135.62,3.6864]
[1726002122324,1.3796,135.66,135.58,17.69]
[1726002123433,17.69,135.7,135.58,17.69]
[1726002123625,19.0113,135.7,135.58,17.69]
[1726002124331,19.0113,135.7,135.64,3.6858]
[1726002125127,19.0113,135.7,135.64,3.6859]
[1726002125531,19.0113,135.7,135.58,17.69]
[1726002125733,19.0113,135.7,135.65,3.6856]
[1726002125932,19.0113,135.7,135.58,17.69]
[1726002127132,19.0113,135.7,135.65,3.6856]
[1726002128428,19.0113,135.7,135.66,3.6854]
[1726002128823,19.0113,135.7,135.61,1.3174]
[1726002129231,19.0113,135.7,135.63,3.6861]
[1726002129528,19.0113,135.7,135.61,1.3174]
[1726002129726,19.0113,135.7,135.64,3.686]
[1726002130432,19.0113,135.7,135.61,1.3174]
[1726002131136,19.0113,135.7,135.64,3.6859]
[1726002134138,19.0113,135.7,135.63,3.6861]
[1726002134437,19.0113,135.7,135.58,17.69]
[1726002134825,19.0113,135.7,135.64,3.6858]
[1726002138130,11.32,135.66,135.64,3.6858]
[1726002138844,11.32,135.66,135.6,11.32]
[1726002139345,11.32,135.65,135.59,11.32]
[1726002139542,11.32,135.65,135.62,3.6864]
[1726002141438,11.32,135.65,135.61,3.6867]
[1726002141944,11.32,135.63,135.6,3.6869]
[1726002144249,11.32,135.62,135.59,3.6873]
[1726002144445,11.32,135.61,135.56,1.3493]
[1726002144648,11.32,135.61,135.49,7.38]
[1726002144649,11.32,135.6,135.54,11.32]
[1726002146251,11.32,135.6,135.57,3.6879]
[1726002147249,11.32,135.6,135.56,3.688]
[1726002150856,11.32,135.6,135.55,3.6884]
[1726002151052,11.32,135.57,135.51,2.7764]
[1726002151247,11.32,135.56,135.51,1.4033]
[1726002151956,11.32,135.56,135.51,5.0927]
[1726002152964,11.32,135.56,135.51,1.4033]
[1726002154755,11.32,135.56,135.51,5.0928]
[1726002155061,11.32,135.57,135.51,11.32]
[1726002155259,11.32,135.57,135.5,12.6689]
[1726002155561,11.32,135.55,135.5,11.32]
[1726002156658,11.32,135.55,135.49,3.6899]
[1726002158462,11.32,135.57,135.5,15.0097]
[1726002158663,15.3799,135.58,135.51,11.32]
[1726002159062,15.3799,135.58,135.51,15.0094]
[1726002159468,15.3799,135.58,135.51,11.32]
[1726002159767,15.3799,135.58,135.52,3.6892]
[1726002160166,15.3799,135.58,135.49,3.68514281]
[1726002160361,15.3799,135.58,135.53,11.32]
[1726002161260,15.3799,135.58,135.53,15.009]
[1726002161969,1.3249,135.58,135.53,11.32]
[1726002162169,1.3249,135.58,135.51,2.6357]
[1726002162367,1.3249,135.58,135.53,11.32]
[1726002163263,1.3249,135.58,135.53,15.009]
[1726002164268,1.3249,135.58,135.53,11.32]
[1726002165164,1.06805306,135.58,135.53,11.32]
[1726002165362,1.06805306,135.58,135.52,3.6892]
[1726002165363,12.38805306,135.58,135.52,11.32]
[1726002165570,11.32,135.57,135.45,1.4075]
[1726002165764,11.32,135.57,135.5,11.32]
[1726002166158,11.32,135.57,135.5,15.0097]
[1726002167166,3.75695306,135.58,135.51,11.32]
[1726002167361,15.07695306,135.58,135.51,11.32]
[1726002168369,15.07695306,135.58,135.52,3.6892]
[1726002169874,15.07695306,135.58,135.51,11.32]
[1726002170578,15.07695306,135.58,135.52,3.6891]
[1726002171672,3.75695306,135.58,135.52,3.6891]
[1726002171976,15.07695306,135.58,135.53,3.689]
[1726002173480,15.07695306,135.58,135.51,11.32]
[1726002174681,15.07695306,135.58,135.52,3.6891]
[1726002175879,15.07695306,135.58,135.51,15.0094]
[1726002177881,11.32,135.57,135.51,3.6894]
[1726002178587,11.32,135.57,135.5,15.0097]
[1726002179489,11.32,135.57,135.51,3.6895]
[1726002180684,15.07695306,135.58,135.52,3.6892]
[1726002182787,15.07695306,135.58,135.52,15.0092]
[1726002186091,15.07695306,135.58,135.52,3.6892]
[1726002186292,15.07695306,135.58,135.51,3.6893]
[1726002186491,11.32,135.56,135.46,2.7462]
[1726002186698,11.32,135.56,135.5,3.6897]
[1726002187286,11.32,135.56,135.49,11.32]
[1726002187690,11.32,135.56,135.5,3.6897]
[1726002190900,11.32,135.56,135.49,3.6898]
[1726002191093,11.32,135.56,135.49,15.0098]
[1726002191397,11.32,135.54,135.49,3.6898]
[1726002192497,11.32,135.54,135.48,11.32]
[1726002192498,11.32,135.53,135.48,3.6902]
[1726002193391,11.32,135.53,135.49,3.6899]
[1726002194295,11.32,135.53,135.48,11.32]
[1726002194296,3.75695306,135.58,135.51,11.32]
[1726002194596,3.75695306,135.58,135.53,11.32]
[1726002194597,1.06805306,135.58,135.53,11.32]
[1726002194798,1.06805306,135.58,135.54,3.6887]
[1726002195598,11.32,135.57,135.49,1.331]
[1726002195992,11.32,135.57,135.5,11.32]
[1726002196187,12.5954,135.57,135.5,11.32]
[1726002196595,12.5954,135.57,135.5,3.6897]
[1726002196795,11.32,135.56,135.5,15.0097]
[1726002196990,11.32,135.54,135.47,11.32]
[1726002197600,3.6891,135.53,135.47,11.32]
[1726002198199,3.6893,135.52,135.46,1.3386]
[1726002198399,17.73,135.56,135.46,1.3386]
[1726002199202,3.6891,135.53,135.46,1.3386]
[1726002199407,17.73,135.56,135.46,1.3386]
[1726002200304,3.6889,135.54,135.46,1.3386]
[1726002200497,17.73,135.56,135.46,1.3386]
[1726002200900,17.73,135.56,135.47,17.73]
[1726002202003,3.6891,135.53,135.47,17.73]
[1726002204402,17.73,135.56,135.46,1.3386]
[1726002204607,1.3526,135.55,135.46,1.3386]
[1726002205196,1.3526,135.55,135.47,3.6905]
[1726002205698,1.3526,135.55,135.46,1.3386]
[1726002206206,1.3526,135.55,135.48,3.6903]
[1726002209915,1.3526,135.55,135.49,3.69]
[1726002215818,1.3526,135.55,135.47,17.73]
[1726002216322,1.3526,135.55,135.5,3.6897]
[1726002217713,1.3526,135.55,135.47,17.73]
[1726002217714,1.3526,135.55,135.49,3.6899]
[1726002220122,11.34,135.54,135.49,3.6899]
[1726002223228,11.34,135.54,135.47,11.34]
[1726002223529,12.6926,135.55,135.46,1.3386]
[1726002223723,12.6926,135.55,135.48,11.34]
[1726002224227,12.6926,135.55,135.49,3.6898]
[1726002225134,12.6926,135.55,135.5,3.6898]
[1726002227923,11.34,135.53,135.46,1.3386]
[1726002228234,11.34,135.53,135.46,12.6786]
[1726002228431,11.34,135.53,135.48,3.6902]
[1726002229831,11.34,135.53,135.49,3.6901]
[1726002235845,1.3526,135.55,135.5,3.6898]
[1726002236139,1.2754,135.57,135.49,11.34]
[1726002236337,1.2754,135.57,135.51,3.6894]
[1726002236338,11.34,135.56,135.51,3.6894]
[1726002236643,1.06805306,135.58,135.48,3.65237354]
[1726002236937,1.06805306,135.58,135.46,1.3386]
[1726002236938,11.34,135.54,135.49,3.6899]
[1726002238933,2.36255306,135.58,135.49,3.6899]
[1726002239239,11.34,135.55,135.5,3.6897]
[1726002241546,11.34,135.55,135.51,3.6894]
[1726002242843,11.34,135.57,135.5,11.34]
[1726002243044,1.06805306,135.58,135.51,1.3061]
[1726002243247,12.40805306,135.58,135.51,1.3061]
[1726002244042,12.40805306,135.58,135.53,3.6887]
[1726002244230,12.40805306,135.58,135.51,1.3061]
[1726002244633,12.40805306,135.58,135.53,3.689]
[1726002245032,12.40805306,135.58,135.51,1.3061]
[1726002245644,12.40805306,135.58,135.54,3.6887]
[1726002246739,11.34,135.58,135.54,3.6887]
[1726002246939,11.34,135.58,135.51,1.3061]
[1726002247238,11.34,135.54,135.48,17.73906031]
[1726002247438,11.34,135.54,135.48,6.3341]
[1726002247745,3.71945973,135.59,135.46,1.3814]
[1726002247746,11.34,135.51,135.46,1.3814]
[1726002250643,11.34,135.5,135.46,1.3814]
[1726002256559,11.34,135.51,135.46,1.3814]
[1726002257554,11.34,135.52,135.46,12.7214]
[1726002257751,11.34,135.52,135.47,1.3162]
[1726002264453,11.34,135.51,135.42,1.3824]
[1726002264660,11.34,135.51,135.45,11.34]
[1726002269555,11.34,135.51,135.43,2.7083]
[1726002269761,11.34,135.49,135.43,14.0483]
[1726002270863,11.34,135.49,135.45,3.691]
[1726002271563,11.34,135.49,135.46,3.6908]
[1726002272762,11.34,135.5,135.46,3.6908]
[1726002272958,1.3453,135.51,135.46,3.6908]
[1726002273956,1.3453,135.51,135.47,3.6906]
[1726002274159,1.3453,135.51,135.43,2.7083]
[1726002274362,1.3453,135.51,135.47,3.6904]
[1726002274562,1.3453,135.51,135.43,2.7083]
[1726002274771,1.3478,135.57,135.43,2.7083]
[1726002274961,1.3478,135.57,135.47,3.6906]
[1726002275162,1.3478,135.57,135.43,2.7083]
[1726002275767,1.3478,135.57,135.48,3.6902]
[1726002276371,1.3478,135.57,135.43,2.7083]
[1726002276372,1.3478,135.57,135.49,3.6899]
[1726002276565,1.3478,135.57,135.43,2.7083]
[1726002276966,1.3478,135.57,135.48,3.6903]
[1726002277968,1.3478,135.57,135.43,2.7083]
[1726002278763,1.3478,135.57,135.51,3.6895]
[1726002278966,1.3478,135.57,135.43,2.7083]
[1726002279272,1.3478,135.57,135.41,3.73809563]
[1726002279456,1.3478,135.57,135.35,4.0967]
[1726002279663,1.3478,135.57,135.36,1.35609427]
[1726002279866,1.3478,135.57,135.41,3.6921]
[1726002280264,1.3478,135.57,135.31,21.60415447]
[1726002280470,5.05062844,135.57,135.42,1.35610089]
[1726002281265,9.10306477,135.47,135.42,1.35610089]
[1726002281466,17.81984287,135.46,135.43,3.6917]
[1726002281665,17.81984287,135.45,135.43,3.6917]
[1726002281866,17.81984287,135.44,135.43,3.6917]
[1726002282472,6.85378572,135.44,135.43,3.6917]
[1726002282862,9.10306477,135.49,135.46,3.6908]
[1726002283067,9.10306477,135.49,135.42,1.35610089]
[1726002283068,17.96912739,135.48,135.42,1.35610089]
[1726002283372,6.91120284,135.47,135.46,3.6909]
[1726002283571,11.06095983,135.51,135.46,3.72969196]
[1726002283869,6.91297586,135.5,135.4,1.3198]
[1726002284060,9.10306477,135.54,135.41,1.35593354]
[1726002284268,17.97628677,135.53,135.42,1.3559036]
[1726002284463,17.97628677,135.52,135.4,1.3198]
[1726002284665,17.97746703,135.51,135.41,1.35584851]
[1726002284875,6.91395645,135.5,135.42,1.35587212]
[1726002285167,20.16686331,135.54,135.4,1.3198]
[1726002285373,1.3478,135.57,135.41,8.74025776]
[1726002285576,17.97960497,135.53,135.52,3.6891]
[1726002288765,1.3478,135.57,135.52,3.6891]
[1726002289276,27.08884985,135.56,135.54,3.6885]
[1726002289471,17.97979282,135.55,135.54,3.6885]
[1726002289871,17.97979282,135.55,135.53,3.6889]
[1726002290076,17.97979282,135.54,135.53,3.6889]
[1726002291468,1.3478,135.57,135.53,3.6889]
[1726002291778,17.98352752,135.56,135.53,3.6889]
[1726002291978,17.98352752,135.55,135.53,3.6889]
[1726002292170,17.98352752,135.54,135.53,3.6889]
[1726002295573,6.91674135,135.54,135.53,3.6889]
[1726002295770,1.3478,135.57,135.52,3.6892]
[1726002296081,6.91578112,135.54,135.52,3.6892]
[1726002296275,6.91578112,135.53,135.52,3.6892]
[1726002296574,6.91578112,135.53,135.49,3.9449]
[1726002296779,6.91578112,135.52,135.49,3.9449]
[1726002296976,9.10939922,135.56,135.49,3.9449]
[1726002297180,17.97920117,135.55,135.49,3.9449]
[1726002297379,17.97920117,135.54,135.49,3.9449]
[1726002297677,9.10939922,135.56,135.49,3.9449]
[1726002297678,17.97920117,135.53,135.49,3.9449]
[1726002297872,6.91507737,135.52,135.49,2.5984]
[1726002298072,6.91507737,135.51,135.49,2.5984]
[1726002298278,9.10939922,135.55,135.51,3.6894]
[1726002298477,17.97757822,135.54,135.51,3.6894]
[1726002298676,17.97757822,135.53,135.51,3.6894]
[1726002298872,9.10939922,135.56,135.52,3.6893]
[1726002299074,17.97752311,135.55,135.52,3.6893]
[1726002299279,1.3478,135.57,135.52,3.6893]
[1726002299577,1.3478,135.57,135.53,3.689]
[1726002299578,27.08557069,135.56,135.53,3.689]
[1726002299878,17.97750722,135.55,135.53,3.689]
[1726002300081,17.97750722,135.54,135.53,3.689]
[1726002300383,17.97750722,135.54,135.49,2.5984]
[1726002300580,6.91442585,135.53,135.49,2.5984]
[1726002300785,6.91442585,135.52,135.49,2.5984]
[1726002300987,11.06340982,135.55,135.49,2.5984]
[1726002301188,17.97804095,135.54,135.49,2.5984]
[1726002301484,17.97804095,135.53,135.52,3.6893]
[1726002301685,1.3478,135.57,135.52,3.6893]
[1726002302188,27.08472407,135.56,135.52,3.6893]
[1726002302381,17.97699374,135.55,135.52,3.6893]
[1726002302587,17.97699374,135.54,135.49,2.5984]
[1726002302786,17.97699374,135.53,135.49,2.5984]
[1726002302988,6.91422836,135.52,135.49,2.5984]
[1726002303288,10.45553033,135.57,135.53,3.6889]
[1726002303490,17.97460645,135.56,135.53,3.6889]
[1726002303692,17.97460645,135.55,135.49,2.5984]
[1726002303882,17.97460645,135.54,135.49,2.5984]
[1726002304087,6.91331017,135.53,135.49,2.5984]
[1726002304292,11.06151819,135.56,135.49,2.5984]
[1726002304492,17.97501266,135.55,135.49,2.5984]
[1726002304792,1.3478,135.57,135.49,2.5984]
[1726002304793,17.97501266,135.54,135.49,2.5984]
[1726002304999,1.3478,135.57,135.53,3.6888]
[1726002305391,1.3478,135.57,135.49,2.5984]
[1726002305897,143.68754505,135.84,135.49,3.909]
[1726002306089,4.0403,135.66,135.49,3.909]
[1726002306297,9.09228981,135.6,135.49,3.909]
[1726002306490,24.74891653,135.66,135.56,3.688]
[1726002306692,17.94752039,135.59,135.49,3.909]
[1726002306894,17.94752039,135.58,135.49,3.909]
[1726002307194,6.90289246,135.57,135.49,3.909]
[1726002307391,4.0403,135.66,135.49,3.909]
[1726002307597,17.40442033,135.65,135.49,3.909]
[1726002307786,17.40442033,135.64,135.49,3.909]
[1726002307989,17.40442033,135.63,135.49,3.909]
[1726002308299,4.0403,135.66,135.59,3.6872]
[1726002308300,17.40442033,135.62,135.59,3.6872]
[1726002308600,17.40442033,135.61,135.59,3.6872]
[1726002308900,17.40442033,135.6,135.58,3.6875]
[1726002309098,6.69400782,135.59,135.58,3.6875]
[1726002309503,4.0403,135.66,135.58,3.6875]
[1726002309800,6.69280494,135.59,135.58,3.6875]
[1726002310200,6.69280494,135.59,135.56,3.61755438]
[1726002310502,6.69280494,135.58,135.49,3.909]
[1726002310691,6.69280494,135.57,135.56,3.6881]
[1726002310894,6.69280494,135.57,135.56,3.75414914]
[1726002311094,6.69280494,135.57,135.49,3.909]
[1726002311403,4.0403,135.66,135.49,3.909]
[1726002311604,17.39770757,135.65,135.49,3.909]
[1726002311789,21.11165608,135.64,135.55,3.6883]
[1726002311994,17.39770757,135.63,135.55,3.6883]
[1726002312193,17.39770757,135.62,135.55,3.6883]
[1726002312398,20.09590757,135.61,135.55,3.6883]
[1726002312597,17.39770757,135.6,135.56,3.6882]
[1726002312797,17.39770757,135.59,135.56,3.6882]
[1726002313001,2.6982,135.61,135.49,3.909]
[1726002313195,6.69306883,135.58,135.49,3.909]
[1726002313397,6.69306883,135.57,135.49,3.909]
[1726002313596,2.6982,135.61,135.49,3.909]
[1726002313790,17.39559979,135.6,135.56,3.688]
[1726002314000,17.39559979,135.59,135.56,3.688]
[1726002314201,6.6906153,135.58,135.56,3.688]
[1726002314500,2.6982,135.61,135.55,3.69937181]
[1726002314700,17.39472866,135.6,135.49,3.909]
[1726002314890,6.69028025,135.59,135.49,3.909]
[1726002315091,6.69028025,135.58,135.5,7.3796]
[1726002315305,2.7302,135.65,135.5,7.3796]
[1726002315494,17.39646073,135.64,135.59,3.6871]
[1726002315697,17.39646073,135.63,135.59,3.6871]
[1726002315898,17.39646073,135.62,135.59,3.6871]
[1726002316100,17.39646073,135.61,135.59,3.6871]
[1726002316298,10.7055143,135.64,135.59,3.6871]
[1726002316504,2.7302,135.65,135.58,3.76557457]
[1726002316505,6.69421857,135.63,135.58,3.76557457]
[1726002316693,6.69421857,135.62,135.5,7.3796]
[1726002316897,6.69421857,135.61,135.5,7.3796]
[1726002317098,2.7302,135.65,135.5,7.3796]
[1726002317099,6.69421857,135.6,135.5,7.3796]
[1726002317402,6.69421857,135.59,135.5,7.3796]
[1726002317613,2.7302,135.65,135.5,7.3796]
[1726002317902,17.40578019,135.64,135.57,3.6877]
[1726002318200,17.40578019,135.63,135.57,3.6877]
[1726002318397,17.40578019,135.62,135.58,3.6876]
[1726002318593,17.40578019,135.61,135.58,3.6876]
[1726002318802,6.69453084,135.6,135.58,3.6876]
[1726002318997,2.7302,135.65,135.58,3.6876]
[1726002319199,17.40394037,135.64,135.57,3.73976543]
[1726002319503,17.40394037,135.63,135.5,7.3796]
[1726002319693,2.7302,135.65,135.5,7.3796]
[1726002319895,6.69456836,135.62,135.5,7.3796]
[1726002320097,2.7302,135.65,135.5,7.3796]
[1726002320304,17.40645517,135.64,135.5,7.3796]
[1726002320498,2.7302,135.65,135.5,7.3796]
[1726002320702,17.40597019,135.64,135.5,7.3796]
[1726002320913,17.40597019,135.63,135.5,7.3796]
[1726002321102,17.40518133,135.62,135.5,7.3796]
[1726002321301,6.69460392,135.61,135.5,7.3796]
[1726002321496,2.7302,135.65,135.5,7.3796]
[1726002321698,17.40428566,135.64,135.5,7.3796]
[1726002322004,17.40428566,135.63,135.56,3.6879]
[1726002322204,17.40428566,135.62,135.56,7.41300694]
[1726002322504,6.69395602,135.61,135.56,7.41300694]
[1726002322806,6.69395602,135.6,135.56,3.6879]
[1726002323109,2.7302,135.65,135.5,7.3796]
[1726002323295,17.40305806,135.64,135.5,7.3796]
[1726002323501,17.40305806,135.63,135.5,7.3796]
[1726002323700,17.40305806,135.62,135.5,7.3796]
[1726002323901,6.69348387,135.61,135.5,7.3796]
[1726002324206,2.7302,135.65,135.5,7.3796]
[1726002324408,17.4034426,135.64,135.5,7.3796]
[1726002324608,17.4034426,135.63,135.5,7.3796]
[1726002324910,6.69363177,135.62,135.5,7.3796]
[1726002325214,6.69363177,135.61,135.5,7.3796]
[1726002325406,2.7302,135.65,135.5,7.3796]
[1726002325611,17.40518145,135.64,135.5,7.3796]
[1726002325909,17.40518145,135.63,135.5,7.3796]
[1726002326107,6.69430056,135.62,135.5,7.3796]
[1726002326408,2.7302,135.65,135.5,7.3796]
[1726002326801,6.69503358,135.64,135.5,7.3796]
[1726002327003,2.7302,135.65,135.5,7.3796]
[1726002327204,17.4116209,135.63,135.5,7.3796]
[1726002327406,6.69677727,135.62,135.5,7.3796]
[1726002327604,2.7302,135.65,135.5,7.3796]
[1726002327807,17.41820127,135.64,135.5,7.3796]
[1726002328001,17.41820127,135.63,135.5,7.3796]
[1726002328306,6.69938011,135.62,135.5,7.3796]
[1726002328506,2.7302,135.65,135.49,3.909]
[1726002328709,17.41791972,135.64,135.49,3.909]
[1726002329013,17.41791972,135.63,135.49,3.909]
[1726002329216,17.41791972,135.64,135.49,3.909]
[1726002329509,6.69919989,135.63,135.5,1.35518802]
[1726002329705,6.69919989,135.62,135.58,3.6876]
[1726002330013,2.7302,135.65,135.51,7.3791]
[1726002330211,17.4205437,135.64,135.51,7.3791]
[1726002330414,6.70022956,135.63,135.51,7.3791]
[1726002330612,6.70022956,135.62,135.51,7.3791]
[1726002330913,2.7302,135.65,135.51,7.3791]
[1726002331114,17.42172646,135.64,135.51,7.3791]
[1726002331314,17.42172646,135.64,135.58,3.6875]
[1726002331611,17.42172646,135.64,135.58,7.32041045]
[1726002336211,17.42172646,135.64,135.58,3.63291045]
[1726002336413,6.70066402,135.64,135.51,7.3791]
[1726002336618,2.7302,135.65,135.52,1.35502801]
[1726002336812,3.69692046,135.71,135.53,7.3778]
[1726002337005,4.0707,135.7,135.54,4.07592801]
[1726002337205,17.4299457,135.69,135.54,4.0521]
[1726002337914,17.4299457,135.69,135.62,3.6864]
[1726002338120,17.4299457,135.69,135.62,7.37152238]
[1726002338619,17.4299457,135.69,135.62,3.68512238]
[1726002338820,6.70382527,135.69,135.54,4.0521]
[1726002339115,6.70382527,135.68,135.62,3.6864]
[1726002339419,4.0707,135.7,135.55,7.3769]
[1726002339620,17.43554558,135.69,135.63,3.6862]
[1726002339818,17.43554558,135.69,135.63,7.35436573]
[1726002340908,17.43554558,135.69,135.63,7.34736189]
[1726002341107,17.43554558,135.69,135.64,3.6859]
[1726002341526,17.43554558,135.69,135.64,7.40262933]
[1726002341821,17.43554558,135.69,135.64,3.6859]
[1726002342024,6.70603874,135.69,135.65,3.6857]
[1726002342223,4.0707,135.7,135.57,7.3758]
[1726002342417,4.0707,135.7,135.66,3.6854]
[1726002344329,4.0707,135.7,135.65,7.34076478]
[1726002344521,4.0707,135.7,135.65,3.6856]
[1726002345133,4.0707,135.7,135.65,7.35359351]
[1726002345729,4.0707,135.7,135.65,3.66799351]
[1726002346222,4.0707,135.7,135.57,7.3758]
[1726002346626,4.0707,135.7,135.55,3.74631377]
[1726002346926,6.70723948,135.69,135.56,1.35451419]
[1726002347125,4.0707,135.7,135.61,3.6866]
[1726002347332,6.70612316,135.69,135.61,3.6866]
[1726002347533,4.0707,135.7,135.61,3.6866]
[1726002347727,6.70495183,135.69,135.61,3.6866]
[1726002347933,4.0707,135.7,135.62,7.28959047]
[1726002348134,6.70517105,135.69,135.62,7.28959047]
[1726002348431,4.0707,135.7,135.62,7.28959047]
[1726002348626,6.70523254,135.69,135.62,3.60309047]
[1726002348833,6.70523254,135.68,135.61,3.6867]
[1726002349037,4.0707,135.7,135.62,7.28285494]
[1726002349334,6.706059,135.69,135.62,3.6864]
[1726002349536,4.0707,135.7,135.62,3.6864]
[1726002349731,6.70625421,135.69,135.62,7.39897664]
[1726002350028,4.0707,135.7,135.62,7.39897664]
[1726002350222,6.70584803,135.69,135.62,7.39897664]
[1726002350425,4.0707,135.7,135.62,7.39897664]
[1726002350629,6.70562883,135.69,135.62,7.39897664]
[1726002350833,6.70527439,135.68,135.63,3.6862]
[1726002351022,4.0707,135.7,135.63,3.6862]
[1726002351230,6.70429441,135.69,135.63,3.6862]
[1726002351429,6.70429441,135.68,135.63,3.6862]
[1726002351736,4.0707,135.7,135.63,3.6862]
[1726002351940,6.70469037,135.69,135.63,3.6862]
[1726002352135,6.70469037,135.68,135.63,3.6862]
[1726002352333,4.0707,135.7,135.62,7.39897664]
[1726002352527,10.72740205,135.69,135.62,3.6864]
[1726002352737,6.70478307,135.68,135.62,3.6864]
[1726002352947,4.0707,135.7,135.63,7.36264989]
[1726002353141,17.43314942,135.69,135.63,7.36264989]
[1726002353338,4.0707,135.7,135.63,7.36264989]
[1726002353538,6.70496432,135.68,135.63,3.6862]
[1726002353738,4.0707,135.7,135.63,3.6862]
[1726002354041,17.43347047,135.69,135.63,7.40098848]
[1726002354848,17.43347047,135.69,135.64,3.686]
[1726002356751,4.0707,135.7,135.64,3.686]
[1726002356945,6.70712071,135.68,135.64,3.686]
[1726002357250,4.0707,135.7,135.64,3.686]
[1726002357549,17.43850536,135.69,135.64,3.686]
[1726002360147,4.0707,135.7,135.63,3.71478848]
[1726002360348,6.70530817,135.68,135.56,7.376]
[1726002360550,6.70530817,135.69,135.63,3.6861]